bitfinex-derivatives/quotes_SOLF0:USTF0_20260306
["timestamp","ask_amount","ask_price","bid_price","bid_amount"]
[1772760956034,10.1,89.097,89.034,9.25051745]
[1772760957442,10.1,89.097,89.039,10.107]
[1772760958041,10.101,89.089,89.034,9.25051745]
[1772760958247,9.32528495,89.099,89.034,9.25051745]
[1772760958637,10.1,89.097,89.043,10.106]
[1772760959851,10.101,89.088,89.035,9.5057735]
[1772760960044,9.32528495,89.099,89.035,9.5057735]
[1772760961050,9.05989914,89.089,89.016,9.5057735]
[1772760961249,9.05989914,89.069,89.016,9.5057735]
[1772760961450,9.05989914,89.069,88.991,9.5057735]
[1772760961650,9.05989914,89.049,88.971,9.5057735]
[1772760961853,9.05989914,89.029,88.95,9.51143278]
[1772760962149,9.05989914,89.029,88.951,9.5057735]
[1772760962343,9.05989914,89.021,88.96,19.6217735]
[1772760962750,9.05989914,89.009,88.931,9.5057735]
[1772760963447,9.05989914,89.009,88.933,10.119]
[1772760963448,10.111,89.001,88.933,10.119]
[1772760963750,9.05989914,89.009,88.934,9.5057735]
[1772760964548,10.112,88.996,88.936,10.119]
[1772760964951,9.05989914,88.995,88.934,9.5057735]
[1772760965348,10.113,88.989,88.934,9.5057735]
[1772760965950,9.51143278,89.03,88.934,9.5057735]
[1772760965951,9.05989914,89.014,88.934,9.5057735]
[1772760966850,19.17089914,89.004,88.937,9.5057735]
[1772760967355,9.05989914,89.004,88.911,9.5057735]
[1772760967755,10.112,88.992,88.92,9.5057735]
[1772760968953,10.113,88.988,88.926,10.12]
[1772760969352,10.113,88.984,88.92,9.5057735]
[1772760969547,9.05989914,88.983,88.92,9.5057735]
[1772760969946,10.115,88.972,88.92,9.5057735]
[1772760971350,9.05989914,88.982,88.92,9.5057735]
[1772760972252,9.51143278,88.99,88.922,9.5057735]
[1772760972856,9.05989914,88.987,88.922,9.5057735]
[1772760973746,10.113,88.983,88.922,9.5057735]
[1772760974155,10.114,88.974,88.922,9.5057735]
[1772760974559,9.05989914,88.987,88.922,9.5057735]
[1772760974857,9.05989914,89.007,88.926,9.5057735]
[1772760975459,9.05989914,88.986,88.907,9.5057735]
[1772760976458,10.115,88.969,88.908,9.5057735]
[1772760976956,9.05989914,88.968,88.89,9.51143278]
[1772760977153,9.05989914,88.949,88.889,9.5057735]
[1772760977548,9.05989914,88.967,88.889,9.5057735]
[1772760978047,9.05989914,88.985,88.92,9.5057735]
[1772760978649,9.05989914,88.985,88.934,10.119]
[1772760979056,9.05989914,89.009,88.931,9.5057735]
[1772760979355,20.208,89.067,88.93,9.51143278]
[1772760979356,10.109,89.025,88.97,10.115]
[1772760979555,9.05989914,89.024,88.97,10.115]
[1772760979757,9.05989914,89.024,88.954,9.5057735]
[1772760980157,10.11,89.014,88.961,10.116]
[1772760980358,9.05989914,89.013,88.954,9.5057735]
[1772760980761,9.05989914,89.009,88.9,9.51143278]
[1772760980957,9.05989914,89.009,88.901,9.5057735]
[1772760981252,9.05989914,88.976,88.923,10.12]
[1772760981555,9.05989914,88.976,88.836,157.584]
[1772760981556,9.05989914,88.969,88.881,9.5057735]
[1772760983356,10.116,88.96,88.9,10.123]
[1772760983565,9.05989914,88.969,88.9,10.123]
[1772760983759,9.05989914,88.969,88.881,9.5057735]
[1772760984162,9.05989914,88.95,88.891,10.124]
[1772760984960,10.117,88.948,88.896,10.123]
[1772760985661,10.118,88.945,88.892,9.5057735]
[1772760986364,10.118,88.939,88.882,10.125]
[1772760987061,10.119,88.936,88.882,10.125]
[1772760987267,9.53693632,88.93,88.856,9.5057735]
[1772760987465,9.05989914,88.929,88.856,9.5057735]
[1772760987962,19.18089914,88.915,88.858,10.127]
[1772760988467,9.05989914,88.914,88.856,9.5057735]
[1772760989167,9.52658485,88.912,88.821,9.38185031]
[1772760989562,9.52658485,88.912,88.859,10.127]
[1772760989762,19.06352117,88.93,88.859,9.38185031]
[1772760989962,19.06352117,88.93,88.763,197.67544062]
[1772760989963,9.36738623,88.929,88.841,9.25750091]
[1772760990269,9.36738623,88.909,88.843,10.129]
[1772760990670,9.36738623,88.909,88.848,10.129]
[1772760993167,9.36738623,88.909,88.853,9.25750091]
[1772760993468,19.48738623,88.927,88.853,9.25750091]
[1772760993672,9.36738623,88.947,88.861,9.25750091]
[1772760995470,10.119,88.936,88.879,10.125]
[1772760995672,9.36738623,88.947,88.88,9.25750091]
[1772760996266,10.116,88.961,88.892,9.25750091]
[1772760996662,9.36738623,88.96,88.892,9.25750091]
[1772760997169,9.36738623,88.956,88.892,9.25750091]
[1772760998479,9.36738623,88.94,88.88,10.125]
[1772760998972,9.36738623,88.94,88.888,10.124]
[1772760999675,9.36738623,88.94,88.897,10.123]
[1772760999880,13.87367536,89.022,88.881,9.25750091]
[1772760999881,10.116,88.961,88.881,9.25750091]
[1772761000083,9.36738623,88.96,88.881,9.25750091]
[1772761000277,9.36738623,88.948,88.881,9.25750091]
[1772761000479,9.36738623,88.929,88.861,9.25750091]
[1772761001883,9.36738623,88.949,88.874,9.25750091]
[1772761004180,9.36738623,88.967,88.911,10.121]
[1772761005089,9.36738623,88.963,88.892,9.25750091]
[1772761006088,9.36738623,88.963,88.921,10.12]
[1772761006282,9.36738623,88.963,88.91,9.25750091]
[1772761006984,9.36738623,88.963,88.912,10.121]
[1772761008885,9.36738623,88.963,88.92,10.12]
[1772761009586,9.36738623,88.963,88.91,9.25750091]
[1772761009587,9.36738623,88.963,88.911,10.121]
[1772761009987,9.36738623,88.963,88.89,9.25750091]
[1772761010189,9.36738623,88.95,88.891,10.124]
[1772761010890,10.117,88.948,88.899,10.123]
[1772761012092,9.36738623,88.95,88.907,10.122]
[1772761012494,10.116,88.962,88.914,10.121]
[1772761012690,9.36738623,88.969,88.914,10.121]
[1772761013296,9.36738623,88.959,88.891,9.25750091]
[1772761013694,9.36738623,88.959,88.91,10.121]
[1772761014590,9.36738623,88.957,88.91,10.121]
[1772761015896,9.36738623,88.957,88.89,9.25750091]
[1772761015897,9.36738623,88.957,88.918,10.121]
[1772761017300,9.36738623,88.957,88.89,9.25750091]
[1772761018398,9.36738623,88.955,88.896,10.123]
[1772761019501,9.36738623,88.951,88.896,10.123]
[1772761020401,9.36738623,88.951,88.89,9.25750091]
[1772761020904,9.53546636,88.978,88.913,9.34279774]
[1772761021297,10.114,88.977,88.928,10.119]
[1772761021599,9.53546636,88.976,88.928,10.119]
[1772761022402,9.53546636,88.993,88.929,9.34279774]
[1772761023400,9.53546636,89.012,88.955,10.116]
[1772761023596,9.53546636,89.012,88.955,9.34279774]
[1772761024204,9.53546636,89.012,88.956,10.116]
[1772761025402,10.11,89.011,88.956,10.116]
[1772761025599,19.64546636,89.011,88.956,10.116]
[1772761025905,19.64546636,89.011,88.961,10.116]
[1772761025906,9.53546636,89.011,88.961,10.116]
[1772761026201,9.53546636,89.028,88.957,9.34279774]
[1772761026798,10.109,89.018,88.959,10.116]
[1772761027107,9.53546636,89.017,88.959,10.116]
[1772761027406,9.53693632,89.03,88.969,9.34279774]
[1772761028402,9.53693632,89.03,88.973,10.114]
[1772761029198,9.53693632,89.03,88.979,10.114]
[1772761029404,9.53693632,89.03,88.98,9.34279774]
[1772761029702,9.53546636,89.033,88.98,9.34279774]
[1772761031803,9.53546636,89.033,88.984,10.113]
[1772761032500,9.53546636,89.033,88.985,9.34279774]
[1772761033802,157.135,89.091,88.962,9.34279774]
[1772761033803,9.53546636,89.029,88.962,9.34279774]
[1772761035605,9.53546636,89.009,88.955,10.116]
[1772761036613,9.53546636,89.027,88.959,9.34279774]
[1772761038407,9.53546636,89.027,88.973,9.34279774]
[1772761038706,9.53693632,89.05,88.973,9.34279774]
[1772761038904,9.53693632,89.07,89.024,10.109]
[1772761039105,9.53546636,89.078,89.024,10.109]
[1772761039307,9.53546636,89.069,88.995,9.34279774]
[1772761039505,10.107,89.042,88.982,10.113]
[1772761039707,9.53546636,89.029,88.941,9.34279774]
[1772761040309,9.53546636,89.029,88.962,9.34279774]
[1772761040708,9.53546636,89.029,88.964,9.34279774]
[1772761041514,10.109,89.025,88.964,9.34279774]
[1772761041709,9.53546636,89.024,88.964,9.34279774]
[1772761042109,10.109,89.018,88.965,10.115]
[1772761042514,10.109,89.018,88.965,19.45779774]
[1772761042816,10.11,89.01,88.965,9.34279774]
[1772761043610,9.53546636,89.024,88.949,9.34279774]
[1772761043815,19.64746636,88.994,88.933,9.34279774]
[1772761044611,10.111,89.004,88.943,9.34279774]
[1772761044811,19.06002496,89.01,88.943,9.34279774]
[1772761045418,9.53546636,89.01,88.943,9.34279774]
[1772761047114,10.113,88.985,88.943,9.34279774]
[1772761047314,9.5245586,89.03,88.943,9.34279774]
[1772761047315,19.06002496,89.01,88.943,9.34279774]
[1772761047518,9.53546636,89.009,88.943,9.34279774]
[1772761047814,9.53546636,89.009,88.944,9.34279774]
[1772761048020,9.53546636,89.029,88.944,9.34279774]
[1772761048414,9.53546636,89.029,88.949,9.28746839]
[1772761048616,9.03114255,89.028,88.949,9.28746839]
[1772761048816,9.03114255,89.009,88.911,9.28746839]
[1772761049518,9.03114255,89.009,88.937,9.28746839]
[1772761050323,10.114,88.978,88.937,9.28746839]
[1772761050721,8.75515079,88.988,88.937,9.28746839]
[1772761050923,8.75515079,89.009,88.937,9.28746839]
[1772761052823,10.112,88.995,88.939,9.29929263]
[1772761053617,9.5245586,89.03,88.883,20.25]
[1772761053618,10.11,89.008,88.952,9.29929263]
[1772761054315,9.5245586,89.03,88.952,9.29929263]
[1772761054316,10.111,89.0,88.952,9.29929263]
[1772761054523,8.75515079,89.0,88.952,9.29929263]
[1772761055317,10.111,89.002,88.952,9.29929263]
[1772761055922,10.11,89.011,88.954,9.29929263]
[1772761056124,8.75515079,89.017,88.954,9.29929263]
[1772761057021,10.112,88.995,88.954,9.29929263]
[1772761058725,10.111,89.004,88.954,9.29929263]
[1772761059424,10.112,88.996,88.954,9.29929263]
[1772761061626,3.55688391,88.99,88.947,10.117]
[1772761061822,3.55688391,88.99,88.901,20.67544062]
[1772761061823,3.55688391,88.97,88.911,9.29929263]
[1772761062027,3.55688391,89.0,88.941,9.29929263]
[1772761062631,10.112,88.998,88.952,10.117]
[1772761064430,3.55688391,89.0,88.952,10.117]
[1772761064926,10.111,88.999,88.943,10.118]
[1772761065228,3.55688391,88.99,88.944,9.29929263]
[1772761066426,3.55688391,88.99,88.945,10.118]
[1772761066632,3.55688391,88.99,88.946,9.29929263]
[1772761067332,3.55688391,89.0,88.95,9.29929263]
[1772761068333,12.3120347,88.99,88.934,9.29929263]
[1772761068830,3.55688391,88.98,88.934,9.29929263]
[1772761069031,13.67088391,88.98,88.934,9.29929263]
[1772761069237,3.55688391,88.97,88.934,9.29929263]
[1772761069730,3.55688391,88.97,88.883,20.25]
[1772761069731,3.55688391,88.96,88.919,9.29929263]
[1772761070431,3.55688391,88.99,88.941,9.29929263]
[1772761070636,3.55688391,89.0,88.941,9.29929263]
[1772761071328,3.55688391,89.01,88.959,9.29929263]
[1772761071939,3.55688391,89.01,88.961,9.29929263]
[1772761072537,8.75515079,89.017,88.968,10.115]
[1772761073031,8.75515079,89.017,88.961,9.29929263]
[1772761074441,10.111,89.005,88.961,9.29929263]
[1772761075136,8.75515079,89.014,88.963,9.29929263]
[1772761075940,8.75515079,89.01,88.953,10.117]
[1772761076540,10.111,89.005,88.957,10.116]
[1772761076841,8.75515079,89.029,88.958,9.29929263]
[1772761077038,8.75515079,89.028,88.958,9.29929263]
[1772761078642,8.53237078,89.029,88.968,9.29929263]
[1772761078834,27.74038708,89.093,88.968,9.29929263]
[1772761078835,8.75515079,89.04,88.968,9.29929263]
[1772761079039,8.75515079,89.039,88.968,9.29929263]
[1772761079842,8.75515079,89.039,88.978,9.29929263]
[1772761080842,9.16550865,89.038,88.978,9.29929263]
[1772761082537,9.16550865,89.028,88.978,19.41329263]
[1772761083643,9.16550865,89.028,88.979,9.40913415]
[1772761084954,9.16550865,89.027,88.963,9.40913415]
[1772761085447,10.109,89.019,88.964,10.115]
[1772761085651,10.109,89.019,88.965,9.40913415]
[1772761086654,10.11,89.017,88.966,10.115]
[1772761086855,9.16550865,89.016,88.941,9.40913415]
[1772761087250,9.16550865,89.009,88.948,9.40913415]
[1772761087445,9.16550865,89.008,88.948,9.40913415]
[1772761087645,10.113,88.985,88.938,10.118]
[1772761087854,19.27850865,88.985,88.938,10.118]
[1772761089657,19.27850865,88.985,88.929,10.119]
[1772761089858,9.16550865,88.98,88.929,10.119]
[1772761091351,10.114,88.979,88.929,10.119]
[1772761092556,10.113,88.989,88.932,9.40913415]
[1772761092960,9.16550865,88.995,88.937,9.40913415]
[1772761093160,9.16550865,89.011,88.937,9.40913415]
[1772761094354,10.112,88.998,88.945,10.118]
[1772761094657,3.55707405,88.99,88.945,10.118]
[1772761095753,3.55707405,88.99,88.938,9.40913415]
[1772761096156,3.55707405,88.98,88.938,9.40913415]
[1772761096753,10.115,88.972,88.938,9.40913415]
[1772761097051,9.16550865,88.986,88.91,3.55707405]
[1772761097257,3.55707405,88.98,88.93,3.55707405]
[1772761097458,9.16550865,88.986,88.94,9.40913415]
[1772761098049,3.55707405,88.98,88.94,9.40913415]
[1772761098256,3.55707405,88.98,88.941,10.118]
[1772761099256,12.7225827,88.98,88.932,10.119]
[1772761099655,3.55707405,88.97,88.922,9.40913415]
[1772761100856,3.55707405,88.97,88.874,27.64181064]
[1772761100857,3.55707405,88.95,88.905,9.40913415]
[1772761101358,3.55707405,88.95,88.89,3.55707405]
[1772761101359,3.55707405,88.97,88.911,9.40913415]
[1772761101547,3.55707405,88.98,88.921,9.40913415]
[1772761101950,3.55707405,88.97,88.923,9.40913415]
[1772761102355,3.55707405,88.96,88.911,9.40913415]
[1772761102550,3.55707405,88.97,88.921,9.40913415]
[1772761103153,3.55707405,88.97,88.924,10.12]
[1772761103659,9.16550865,88.978,88.93,3.55707405]
[1772761103859,9.16550865,88.978,88.925,9.40913415]
[1772761104062,3.55707405,88.98,88.933,9.40913415]
[1772761104556,3.55787597,88.98,88.936,19.52813415]
[1772761105260,3.55787597,88.98,88.936,9.40913415]
[1772761105460,3.55787597,88.97,88.926,10.12]
[1772761106454,3.55787597,88.98,88.936,9.40913415]
[1772761106962,10.48547933,89.021,88.901,20.67544062]
[1772761106963,9.16550865,89.012,88.96,3.55787597]
[1772761107169,3.55787597,89.02,88.961,9.40913415]
[1772761107763,12.72338462,89.03,88.973,10.114]
[1772761107968,41.17795866,89.074,88.925,20.24]
[1772761107969,9.16550865,89.046,88.981,9.40913415]
[1772761108168,9.16550865,89.039,88.981,9.40913415]
[1772761108361,3.55787597,89.03,88.981,19.52213415]
[1772761108662,10.48547933,89.071,88.925,20.24]
[1772761108663,3.55787597,89.02,88.97,12.65254096]
[1772761108869,8.77078153,89.029,88.97,12.65254096]
[1772761109063,8.77078153,89.029,88.971,9.09466499]
[1772761109370,8.77078153,89.029,88.98,13.67187597]
[1772761110462,3.55787597,89.03,88.98,13.67187597]
[1772761110463,3.55787597,89.03,88.984,8.74419204]
[1772761110671,3.55787597,89.06,89.001,8.74419204]
[1772761110972,3.55787597,89.07,89.02,3.55787597]
[1772761111274,3.55787597,89.07,89.021,8.74419204]
[1772761112475,9.08086225,89.07,89.021,8.74419204]
[1772761112666,12.63873822,89.07,89.021,8.74419204]
[1772761113076,12.63873822,89.07,89.022,10.109]
[1772761114178,12.63873822,89.07,89.021,8.74419204]
[1772761114371,9.08086225,89.07,89.021,8.74419204]
[1772761114566,12.63873822,89.07,89.021,8.74419204]
[1772761115477,12.63873822,89.07,89.021,18.85319204]
[1772761116480,3.55787597,89.08,89.027,8.74419204]
[1772761116679,9.08086225,89.079,89.027,8.74419204]
[1772761116880,3.55787597,89.05,89.0,3.55787597]
[1772761117774,9.08086225,89.059,89.0,3.55787597]
[1772761118079,3.55787597,89.05,88.996,8.74419204]
[1772761118378,3.55787597,89.05,89.001,10.111]
[1772761118878,3.55787597,89.05,89.001,8.74419204]
[1772761119481,9.08086225,89.059,89.001,8.74419204]
[1772761119884,9.08086225,89.077,89.001,8.74419204]
[1772761120079,3.55787597,89.06,89.011,8.74419204]
[1772761120879,3.55787597,89.05,89.011,8.74419204]
[1772761122582,9.08086225,89.06,89.011,18.85419204]
[1772761123285,9.08086225,89.094,89.02,8.74419204]
[1772761123480,10.101,89.092,89.02,8.74419204]
[1772761123682,1.95450167,89.105,89.047,8.74419204]
[1772761123879,9.08086225,89.11,89.047,8.74419204]
[1772761124077,9.08086225,89.104,89.021,8.74419204]
[1772761124275,9.08086225,89.104,89.041,10.107]
[1772761124477,9.08086225,89.104,89.042,8.74419204]
[1772761125182,10.48547933,89.147,88.998,20.224]
[1772761125183,9.08086225,89.128,89.072,8.74419204]
[1772761125378,9.08086225,89.128,89.041,8.74419204]
[1772761125582,9.08086225,89.118,89.052,10.105]
[1772761125776,9.08086225,89.118,89.053,8.74419204]
[1772761126975,19.17886225,89.116,89.058,10.105]
[1772761127181,9.08086225,89.115,89.058,10.105]
[1772761127986,10.099,89.113,89.053,8.74419204]
[1772761128188,9.08086225,89.112,89.037,8.74419204]
[1772761128577,9.08086225,89.098,89.04,10.107]
[1772761128784,9.08086225,89.098,89.04,18.85119204]
[1772761129386,9.08086225,89.098,89.04,8.74419204]
[1772761130288,9.08086225,89.096,89.04,8.74419204]
[1772761130583,9.08086225,89.079,88.981,8.74419204]
[1772761130784,9.08086225,89.059,88.981,8.74419204]
[1772761131287,9.51448211,89.06,89.005,8.74419204]
[1772761131487,9.08086225,89.077,89.005,8.74419204]
[1772761131683,9.51448211,89.09,89.005,8.74419204]
[1772761131884,9.08086225,89.089,89.027,8.74419204]
[1772761132587,19.18386225,89.07,89.008,8.74419204]
[1772761132783,9.08086225,89.089,89.008,8.74419204]
[1772761133588,19.18186225,89.089,89.024,8.74419204]
[1772761133790,9.08086225,89.106,89.024,8.74419204]
[1772761135291,9.08086225,89.106,89.051,10.106]
[1772761135488,9.08086225,89.147,89.052,8.74419204]
[1772761135789,10.095,89.142,89.083,8.74419204]
[1772761136190,10.096,89.134,89.083,8.74419204]
[1772761137188,10.095,89.143,89.085,10.102]
[1772761137388,10.095,89.143,89.083,8.74419204]
[1772761137590,9.51448211,89.15,89.083,8.74419204]
[1772761137990,11.03390504,89.165,89.083,8.74419204]
[1772761138187,11.03390504,89.165,89.04,9.51448211]
[1772761138188,11.03390504,89.165,89.096,8.74419204]
[1772761138391,9.08086225,89.165,89.096,8.74419204]
[1772761139097,9.08086225,89.183,89.105,8.74419204]
[1772761139694,9.08086225,89.173,89.107,10.099]
[1772761139897,9.08086225,89.173,89.105,8.74419204]
[1772761140491,10.09,89.185,89.122,9.02782558]
[1772761140709,9.51448211,89.19,89.122,9.02782558]
[1772761140994,8.59646723,89.178,89.122,9.02782558]
[1772761141195,8.59646723,89.169,89.107,10.099]
[1772761141392,8.59646723,89.169,89.088,9.02782558]
[1772761141595,8.59646723,89.154,89.09,10.101]
[1772761142095,8.59646723,89.154,89.088,9.02782558]
[1772761142296,8.59646723,89.152,89.091,10.101]
[1772761142499,8.59646723,89.152,89.088,9.02782558]
[1772761142695,8.59646723,89.149,89.068,9.02782558]
[1772761144300,8.59646723,89.144,89.08,10.102]
[1772761144702,8.59646723,89.144,89.081,9.02782558]
[1772761144993,8.59646723,89.144,89.082,19.12982558]
[1772761145496,8.59646723,89.142,89.069,10.103]
[1772761145703,8.59646723,89.129,89.064,9.02782558]
[1772761147398,8.59646723,89.129,89.065,9.02782558]
[1772761148199,9.51448211,89.15,89.05,9.51448211]
[1772761148200,10.095,89.145,89.077,9.02782558]
[1772761148395,8.59646723,89.144,89.077,9.02782558]
[1772761148705,8.59646723,89.144,89.051,9.02782558]
[1772761149502,8.59646723,89.127,89.066,9.02782558]
[1772761150100,8.59646723,89.127,89.068,9.02782558]
[1772761150298,8.59646723,89.145,89.068,9.02782558]
[1772761150509,8.59646723,89.145,89.071,9.02782558]
[1772761150710,10.093,89.164,89.102,10.1]
[1772761151899,10.093,89.164,89.097,9.02782558]
[1772761151900,10.094,89.151,89.097,9.02782558]
[1772761152106,8.59646723,89.164,89.071,9.02782558]
[1772761153306,8.59646723,89.151,89.071,9.02782558]
[1772761153704,9.51448211,89.17,89.071,9.02782558]
[1772761153705,18.11094934,89.17,89.071,9.02782558]
[1772761153906,8.59646723,89.169,89.071,9.02782558]
[1772761154106,8.59646723,89.155,89.097,10.1]
[1772761154906,9.51448211,89.17,89.086,9.02782558]
[1772761154907,8.59646723,89.152,89.086,9.02782558]
[1772761155105,8.59646723,89.149,89.086,9.02782558]
[1772761156214,10.095,89.141,89.086,9.02782558]
[1772761156406,8.59646723,89.14,89.086,9.02782558]
[1772761156607,8.59646723,89.14,89.05,9.51448211]
[1772761156608,8.59646723,89.14,89.051,9.02782558]
[1772761157432,10.096,89.133,89.067,9.02782558]
[1772761158211,10.097,89.125,89.067,9.02782558]
[1772761158510,8.59646723,89.132,89.067,9.02782558]
[1772761159011,10.097,89.126,89.069,10.103]
[1772761159314,8.59646723,89.132,89.07,9.02782558]
[1772761160510,8.59646723,89.132,89.073,9.02782558]
[1772761161307,8.59646723,89.132,89.075,9.02782558]
[1772761161510,8.59646723,89.129,89.051,9.02782558]
[1772761161915,8.59646723,89.129,89.064,10.104]
[1772761162112,8.59646723,89.129,89.065,9.02782558]
[1772761163018,9.51448211,89.15,89.05,9.51448211]
[1772761163019,8.59646723,89.147,89.079,9.02782558]
[1772761163912,10.097,89.13,89.079,9.02782558]
[1772761165111,10.097,89.13,89.081,10.102]
[1772761165328,10.096,89.139,89.082,9.02782558]
[1772761165517,8.59646723,89.147,89.082,9.02782558]
[1772761166214,8.59646723,89.131,89.082,9.02782558]
[1772761167819,8.59646723,89.131,89.051,9.02782558]
[1772761168216,8.59646723,89.131,89.078,9.25764906]
[1772761169115,8.57919078,89.123,89.062,9.25764906]
[1772761169820,8.47937497,89.149,89.062,9.25764906]
[1772761170020,10.097,89.129,89.073,8.67051096]
[1772761170219,8.85223062,89.146,89.073,8.67051096]
[1772761170420,8.85223062,89.145,89.073,8.67051096]
[1772761170720,8.85223062,89.122,89.073,8.67051096]
[1772761171915,8.85223062,89.122,89.074,18.77351096]
[1772761172519,10.097,89.128,89.077,10.103]
[1772761174222,10.097,89.128,89.075,8.67051096]
[1772761174223,10.098,89.121,89.075,8.67051096]
[1772761174922,10.099,89.106,89.058,8.67051096]
[1772761175616,9.49805962,89.15,89.05,9.49805962]
[1772761175617,8.85223062,89.143,89.061,8.67051096]
[1772761176422,10.097,89.128,89.074,8.67051096]
[1772761176624,8.85223062,89.127,89.074,8.67051096]
[1772761177319,10.097,89.126,89.079,10.102]
[1772761178020,10.097,89.126,89.074,8.67051096]
[1772761178218,8.85223062,89.119,89.053,8.67051096]
[1772761178619,8.85223062,89.101,89.026,20.58054837]
[1772761178827,8.85223062,89.101,89.031,8.67051096]
[1772761179221,8.85223062,89.092,89.031,8.67051096]
[1772761179620,10.102,89.084,89.032,10.108]
[1772761179826,8.85223062,89.092,89.033,8.67051096]
[1772761180728,8.85223062,89.092,89.037,8.67051096]
[1772761181030,8.85223062,89.108,89.037,8.67051096]
[1772761181530,8.85223062,89.108,89.052,8.67051096]
[1772761182232,8.85223062,89.128,89.064,8.67051096]
[1772761182926,10.096,89.133,89.079,8.67051096]
[1772761183231,18.94823062,89.133,89.079,8.67051096]
[1772761183825,10.098,89.117,89.079,8.67051096]
[1772761184032,10.098,89.117,89.051,8.67051096]
[1772761184223,17.37691625,89.131,89.051,8.67051096]
[1772761184429,8.85223062,89.13,89.051,8.67051096]
[1772761184835,8.85223062,89.128,89.051,8.67051096]
[1772761185228,10.099,89.11,89.058,10.105]
[1772761185435,8.85223062,89.109,89.031,8.67051096]
[1772761185926,10.101,89.095,89.04,10.107]
[1772761186123,8.85223062,89.107,89.041,8.67051096]
[1772761186434,10.098,89.114,89.064,10.104]
[1772761186623,8.85223062,89.113,89.041,8.67051096]
[1772761187330,8.85223062,89.118,89.041,8.67051096]
[1772761188526,8.85223062,89.118,89.052,8.67051096]
[1772761189230,8.85223062,89.117,89.052,8.67051096]
[1772761189435,8.85223062,89.113,89.061,10.104]
[1772761190039,8.85223062,89.113,89.061,18.77451096]
[1772761190432,8.85223062,89.113,89.065,10.104]
[1772761190939,8.85223062,89.129,89.066,8.67051096]
[1772761191239,8.85223062,89.145,89.066,8.67051096]
[1772761192540,10.095,89.144,89.082,8.67051096]
[1772761192730,8.85223062,89.143,89.082,8.67051096]
[1772761193039,8.85223062,89.143,89.086,8.67051096]
[1772761194540,8.85223062,89.14,89.086,8.67051096]
[1772761194736,8.85223062,89.14,89.069,8.67051096]
[1772761194936,8.85223062,89.139,89.069,8.67051096]
[1772761195243,8.85223062,89.138,89.069,8.67051096]
[1772761195641,10.095,89.147,89.088,8.67051096]
[1772761195839,8.85223062,89.146,89.054,8.67051096]
[1772761197345,8.85223062,89.145,89.054,8.67051096]
[1772761197640,8.85223062,89.131,89.051,8.67051096]
[1772761198737,9.49805962,89.12,89.051,8.67051096]
[1772761198945,8.85223062,89.119,89.051,8.67051096]
[1772761199244,8.85223062,89.118,89.051,8.67051096]
[1772761199540,8.85223062,89.102,89.03,9.49805962]
[1772761199746,8.85223062,89.102,89.034,8.67051096]
[1772761200342,8.85223062,89.102,89.046,8.86295181]
[1772761200541,9.49805962,89.12,89.046,8.86295181]
[1772761200738,8.53227655,89.122,89.051,8.86295181]
[1772761200941,9.13099599,89.123,89.069,8.86295181]
[1772761201443,9.13099599,89.142,89.069,8.86295181]
[1772761202445,10.096,89.136,89.08,10.102]
[1772761202640,10.096,89.136,89.08,18.96495181]
[1772761204040,9.13099599,89.159,89.088,8.86295181]
[1772761204242,9.13099599,89.158,89.088,8.86295181]
[1772761205251,9.13099599,89.146,89.072,8.86295181]
[1772761206048,9.13099599,89.121,89.064,8.86295181]
[1772761207545,10.096,89.137,89.079,8.86295181]
[1772761207745,9.13099599,89.136,89.079,8.86295181]
[1772761208248,9.13099599,89.135,89.079,8.86295181]
[1772761208448,9.13099599,89.135,89.083,10.102]
[1772761208945,9.13099599,89.135,89.079,8.86295181]
[1772761209553,9.13099599,89.152,89.083,8.86295181]
[1772761210247,19.22499599,89.152,89.088,8.86295181]
[1772761210447,8.53222631,89.151,89.088,8.86295181]
[1772761210849,8.53222631,89.151,89.063,20.209]
[1772761210850,8.53222631,89.169,89.091,8.86295181]
[1772761211853,9.13099599,89.168,89.106,8.86295181]
[1772761213449,9.13099599,89.167,89.108,8.86295181]
[1772761214458,9.13099599,89.167,89.111,10.099]
[1772761215253,9.49805962,89.17,89.108,8.86295181]
[1772761215254,9.13099599,89.165,89.108,8.86295181]
[1772761215855,9.13099599,89.153,89.071,8.86295181]
[1772761216052,9.13099599,89.153,89.102,8.86295181]
[1772761216250,10.093,89.167,89.102,8.86295181]
[1772761216455,27.73934643,89.167,89.102,8.86295181]
[1772761216761,9.49805962,89.17,89.106,8.86295181]
[1772761216762,9.13099599,89.166,89.106,8.86295181]